[Event "Titled Tuesday Blitz April 26 Late 2022"]
[White "Rosen, Eric"]
[Black "Maghsoodloo, Parham"]
[WhiteFideId "2032562"]
[BlackFideId "12539929"]
[WhiteElo "2362"]
[BlackElo "2630"]
[Result "1-0"]
[Round "02"]
[TimeControl "180+1"]
[Date "2022.04.26"]
[WhiteClock "0:00:03"]
[BlackClock "0:00:04"]

1. d4 {[%clk 0:03:00]}  Nf6 {[%clk 0:02:57]} 2. Bf4 {[%clk 0:03:00]}  d5 {[%clk 0:02:57]} 3. e3 {[%clk 0:03:00]}  c5 {[%clk 0:02:57]} 4. Nf3 {[%clk 0:02:59]}  Nc6 {[%clk 0:02:58]} 5. Nbd2 {[%clk 0:02:59]}  Nh5 {[%clk 0:02:57]} 6. dxc5 {[%clk 0:02:59]}  Nxf4 {[%clk 0:02:56]} 7. exf4 {[%clk 0:03:00]}  g6 {[%clk 0:02:57]} 8. c3 {[%clk 0:02:59]}  Bh6 {[%clk 0:02:56]} 9. g3 {[%clk 0:02:59]}  O-O {[%clk 0:02:57]} 10. Bg2 {[%clk 0:02:53]}  a5 {[%clk 0:02:56]} 11. O-O {[%clk 0:02:52]}  Bg7 {[%clk 0:02:57]} 12. Qe2 {[%clk 0:02:49]}  a4 {[%clk 0:02:54]} 13. Qe3 {[%clk 0:02:34]}  d4 {[%clk 0:02:48]} 14. cxd4 {[%clk 0:02:29]}  Nxd4 {[%clk 0:02:49]} 15. Nxd4 {[%clk 0:02:30]}  Qxd4 {[%clk 0:02:26]} 16. Rab1 {[%clk 0:02:30]}  Bf5 {[%clk 0:02:14]} 17. Qxd4 {[%clk 0:02:30]}  Bxd4 {[%clk 0:02:14]} 18. Be4 {[%clk 0:02:31]}  Bxc5 {[%clk 0:02:11]} 19. Bxf5 {[%clk 0:02:25]}  gxf5 {[%clk 0:02:11]} 20. Nc4 {[%clk 0:02:05]}  b5 {[%clk 0:02:00]} 21. Ne5 {[%clk 0:02:05]}  Rfc8 {[%clk 0:02:00]} 22. Rfd1 {[%clk 0:01:55]}  f6 {[%clk 0:01:57]} 23. Nd7 {[%clk 0:01:38]}  Ba7 {[%clk 0:01:54]} 24. Rd2 {[%clk 0:01:12]}  Rc7 {[%clk 0:01:46]} 25. Rbd1 {[%clk 0:01:02]}  Rac8 {[%clk 0:01:29]} 26. b4 {[%clk 0:00:57]}  axb3 {[%clk 0:01:25]} 27. axb3 {[%clk 0:00:57]}  b4 {[%clk 0:01:24]} 28. Ra2 {[%clk 0:00:36]}  Kf7 {[%clk 0:01:16]} 29. Ra6 {[%clk 0:00:27]}  Rb7 {[%clk 0:01:15]} 30. Kg2 {[%clk 0:00:17]}  Rcc7 {[%clk 0:01:15]} 31. Nxf6 {[%clk 0:00:07]}  exf6 {[%clk 0:01:15]} 32. Rdd6 {[%clk 0:00:08]}  Rb5 {[%clk 0:01:09]} 33. Rxf6+ {[%clk 0:00:08]}  Kg7 {[%clk 0:01:09]} 34. h4 {[%clk 0:00:06]}  Rc2 {[%clk 0:01:00]} 35. h5 {[%clk 0:00:06]}  Rb7 {[%clk 0:00:16]} 36. h6+ {[%clk 0:00:05]}  Kg8 {[%clk 0:00:16]} 37. Rae6 {[%clk 0:00:03]}  Rb8 {[%clk 0:00:09]} 38. Re7 {[%clk 0:00:03]}  Bxf2 {[%clk 0:00:08]} 39. Kh3 {[%clk 0:00:03]}  Bd4 {[%clk 0:00:08]} 40. Rxf5 {[%clk 0:00:03]}  Rc3 {[%clk 0:00:06]} 41. Rg5+ {[%clk 0:00:03]}  Kh8 {[%clk 0:00:07]} 42. Rd5 {[%clk 0:00:03]}  Bf6 {[%clk 0:00:04]} 43. Rf7 {[%clk 0:00:03]}  Rc6 {[%clk 0:00:04]} 44. Rdd7 {[%clk 0:00:03]}  Kg8 {[%clk 0:00:04]} 45. Rxh7 {[%clk 0:00:04]}  Bh8 {[%clk 0:00:05]} 46. g4 {[%clk 0:00:03]}  Rf8 {[%clk 0:00:04]} 47. f5 {[%clk 0:00:03]}  Rc3+ {[%clk 0:00:05]} 48. Kh4 {[%clk 0:00:03]}  Rxb3 {[%clk 0:00:05]} 49. Kg5 {[%clk 0:00:02]}  Rg3 {[%clk 0:00:06]} 50. Kf4 {[%clk 0:00:02]}  Rg1 {[%clk 0:00:04]} 51. Rb7 {[%clk 0:00:02]}  b3 {[%clk 0:00:04]} 52. Rhd7 {[%clk 0:00:03]}  b2 {[%clk 0:00:04]} 53. h7# {[%clk 0:00:03]} 1-0


[Site "https://www.chess.com"]

[Event "Titled Tuesday Blitz April 26 Late 2022"]
[White "Rozman, Levy"]
[Black "Nakamura, Hikaru"]
[WhiteFideId "2039877"]
[BlackFideId "2016192"]
[WhiteElo "2376"]
[BlackElo "2850"]
[Result "0-1"]
[Round "02"]
[TimeControl "180+1"]
[Date "2022.04.26"]
[WhiteClock "0:00:28"]
[BlackClock "0:01:44"]

1. d4 {[%clk 0:03:00]}  Nf6 {[%clk 0:02:59]} 2. Bg5 {[%clk 0:02:56]}  c5 {[%clk 0:02:58]} 3. d5 {[%clk 0:02:56]}  d6 {[%clk 0:02:58]} 4. Nc3 {[%clk 0:02:54]}  g6 {[%clk 0:02:58]} 5. e4 {[%clk 0:02:52]}  Bg7 {[%clk 0:02:58]} 6. Qd2 {[%clk 0:02:51]}  Qa5 {[%clk 0:02:56]} 7. Bb5+ {[%clk 0:02:47]}  Nbd7 {[%clk 0:02:53]} 8. Nge2 {[%clk 0:02:40]}  a6 {[%clk 0:02:53]} 9. Bxd7+ {[%clk 0:02:40]}  Bxd7 {[%clk 0:02:54]} 10. O-O {[%clk 0:02:34]}  h6 {[%clk 0:02:54]} 11. Bf4 {[%clk 0:02:29]}  b5 {[%clk 0:02:52]} 12. a3 {[%clk 0:02:28]}  Qc7 {[%clk 0:02:47]} 13. Qe3 {[%clk 0:02:15]}  g5 {[%clk 0:02:37]} 14. Bg3 {[%clk 0:02:14]}  Nh5 {[%clk 0:02:37]} 15. f4 {[%clk 0:02:04]}  gxf4 {[%clk 0:02:31]} 16. Bxf4 {[%clk 0:02:03]}  Nxf4 {[%clk 0:02:24]} 17. Qxf4 {[%clk 0:02:00]}  Bf6 {[%clk 0:02:24]} 18. Ng3 {[%clk 0:01:52]}  O-O-O {[%clk 0:02:21]} 19. Nh5 {[%clk 0:01:46]}  Bd4+ {[%clk 0:02:21]} 20. Kh1 {[%clk 0:01:46]}  f6 {[%clk 0:02:21]} 21. Nd1 {[%clk 0:01:38]}  Rdg8 {[%clk 0:02:18]} 22. c3 {[%clk 0:01:32]}  Be5 {[%clk 0:02:17]} 23. Qf2 {[%clk 0:01:27]}  Rg4 {[%clk 0:02:12]} 24. Qe2 {[%clk 0:01:08]}  Rh4 {[%clk 0:02:01]} 25. h3 {[%clk 0:00:51]}  Bg4 {[%clk 0:01:59]} 26. Qxg4+ {[%clk 0:00:46]}  Rxg4 {[%clk 0:01:59]} 27. hxg4 {[%clk 0:00:47]}  Rg8 {[%clk 0:01:53]} 28. Ne3 {[%clk 0:00:46]}  Qd7 {[%clk 0:01:53]} 29. Rf5 {[%clk 0:00:45]}  Kb7 {[%clk 0:01:51]} 30. a4 {[%clk 0:00:42]}  bxa4 {[%clk 0:01:48]} 31. Nf4 {[%clk 0:00:28]}  Qb5 {[%clk 0:01:44]} 0-1


[Site "https://www.chess.com"]

[Event "Titled Tuesday Blitz April 26 Late 2022"]
[White "Sanal, Vahap"]
[Black "Yedidia, Daniel"]
[WhiteFideId "6300545"]
[BlackFideId "30905907"]
[WhiteElo "2603"]
[BlackElo "2600"]
[Result "1-0"]
[Round "02"]
[TimeControl "180+1"]
[Date "2022.04.26"]
[WhiteClock "0:01:20"]
[BlackClock "0:00:07"]

1. Nf3 {[%clk 0:02:41]}  Nf6 {[%clk 0:03:00]} 2. g3 {[%clk 0:02:37]}  b6 {[%clk 0:03:00]} 3. Bg2 {[%clk 0:02:37]}  Bb7 {[%clk 0:03:00]} 4. O-O {[%clk 0:02:38]}  c5 {[%clk 0:03:00]} 5. c4 {[%clk 0:02:38]}  e6 {[%clk 0:03:00]} 6. b3 {[%clk 0:02:38]}  Be7 {[%clk 0:03:00]} 7. Bb2 {[%clk 0:02:39]}  O-O {[%clk 0:03:01]} 8. Nc3 {[%clk 0:02:38]}  Qc8 {[%clk 0:03:00]} 9. d4 {[%clk 0:02:36]}  cxd4 {[%clk 0:03:00]} 10. Nxd4 {[%clk 0:02:36]}  Bxg2 {[%clk 0:03:00]} 11. Kxg2 {[%clk 0:02:36]}  Qb7+ {[%clk 0:02:58]} 12. f3 {[%clk 0:02:36]}  d5 {[%clk 0:02:58]} 13. cxd5 {[%clk 0:02:36]}  Nxd5 {[%clk 0:02:58]} 14. Nxd5 {[%clk 0:02:35]}  Qxd5 {[%clk 0:02:56]} 15. Rc1 {[%clk 0:02:33]}  Na6 {[%clk 0:02:52]} 16. Nc6 {[%clk 0:02:30]}  Bc5 {[%clk 0:02:29]} 17. Qxd5 {[%clk 0:02:28]}  exd5 {[%clk 0:02:30]} 18. Rfd1 {[%clk 0:02:27]}  Rfe8 {[%clk 0:02:25]} 19. Kf1 {[%clk 0:02:25]}  Re6 {[%clk 0:02:16]} 20. Nd4 {[%clk 0:02:25]}  Bxd4 {[%clk 0:02:16]} 21. Rxd4 {[%clk 0:02:21]}  Rae8 {[%clk 0:02:15]} 22. Rc2 {[%clk 0:02:21]}  h6 {[%clk 0:02:08]} 23. Ra4 {[%clk 0:02:04]}  b5 {[%clk 0:01:57]} 24. Ra5 {[%clk 0:02:04]}  Nb4 {[%clk 0:01:54]} 25. Rd2 {[%clk 0:02:02]}  a6 {[%clk 0:01:53]} 26. a3 {[%clk 0:02:00]}  Nc6 {[%clk 0:01:38]} 27. Rxa6 {[%clk 0:02:00]}  Ne7 {[%clk 0:01:21]} 28. Rxe6 {[%clk 0:01:51]}  fxe6 {[%clk 0:01:22]} 29. Rc2 {[%clk 0:01:52]}  Nf5 {[%clk 0:01:17]} 30. Kf2 {[%clk 0:01:50]}  d4 {[%clk 0:01:14]} 31. Rc5 {[%clk 0:01:49]}  e5 {[%clk 0:00:55]} 32. Rxb5 {[%clk 0:01:47]}  Ne3 {[%clk 0:00:56]} 33. Bc1 {[%clk 0:01:45]}  Nd1+ {[%clk 0:00:54]} 34. Ke1 {[%clk 0:01:45]}  Nc3 {[%clk 0:00:54]} 35. Rb7 {[%clk 0:01:45]}  e4 {[%clk 0:00:53]} 36. f4 {[%clk 0:01:33]}  Rd8 {[%clk 0:00:33]} 37. Bb2 {[%clk 0:01:31]}  Nxe2 {[%clk 0:00:16]} 38. Kxe2 {[%clk 0:01:26]}  d3+ {[%clk 0:00:17]} 39. Kd1 {[%clk 0:01:26]}  e3 {[%clk 0:00:17]} 40. Re7 {[%clk 0:01:23]}  e2+ {[%clk 0:00:13]} 41. Kd2 {[%clk 0:01:24]}  Kf8 {[%clk 0:00:12]} 42. Re4 {[%clk 0:01:20]}  Re8 {[%clk 0:00:06]} 43. Rxe8+ {[%clk 0:01:20]}  Kxe8 {[%clk 0:00:07]} 44. Bc3 {[%clk 0:01:20]} 1-0


[Site "https://www.chess.com"]

[Event "Titled Tuesday Blitz April 26 Late 2022"]
[White "Semenenko, Dmytry"]
[Black "Yuan, Qingyu"]
[WhiteFideId "14118645"]
[BlackFideId "8609772"]
[WhiteElo "2113"]
[BlackElo "2359"]
[Result "0-1"]
[Round "02"]
[TimeControl "180+1"]
[Date "2022.04.26"]
[WhiteClock "0:00:15"]
[BlackClock "0:00:14"]

1. Nf3 {[%clk 0:03:00]}  d5 {[%clk 0:02:59]} 2. c4 {[%clk 0:03:00]}  e6 {[%clk 0:02:59]} 3. d4 {[%clk 0:03:00]}  Nf6 {[%clk 0:03:00]} 4. Nc3 {[%clk 0:03:00]}  a6 {[%clk 0:03:00]} 5. e3 {[%clk 0:02:59]}  Nbd7 {[%clk 0:02:57]} 6. Bd3 {[%clk 0:02:59]}  dxc4 {[%clk 0:02:57]} 7. Bxc4 {[%clk 0:02:59]}  b5 {[%clk 0:02:58]} 8. Bd3 {[%clk 0:02:59]}  c5 {[%clk 0:02:56]} 9. O-O {[%clk 0:02:58]}  Bb7 {[%clk 0:02:53]} 10. Qe2 {[%clk 0:02:57]}  Bd6 {[%clk 0:02:46]} 11. Rd1 {[%clk 0:02:50]}  Qc7 {[%clk 0:02:25]} 12. dxc5 {[%clk 0:02:46]}  Bxc5 {[%clk 0:02:12]} 13. e4 {[%clk 0:02:39]}  O-O {[%clk 0:01:55]} 14. Be3 {[%clk 0:02:36]}  Qb6 {[%clk 0:01:42]} 15. Bxc5 {[%clk 0:02:27]}  Nxc5 {[%clk 0:01:42]} 16. e5 {[%clk 0:02:18]}  Bxf3 {[%clk 0:01:34]} 17. Qxf3 {[%clk 0:02:14]}  Nfd7 {[%clk 0:01:28]} 18. Qe3 {[%clk 0:01:15]}  Nxd3 {[%clk 0:01:05]} 19. Rxd3 {[%clk 0:01:15]}  Qxe3 {[%clk 0:01:00]} 20. Rxe3 {[%clk 0:01:15]}  Rad8 {[%clk 0:00:59]} 21. Rd1 {[%clk 0:01:12]}  Nc5 {[%clk 0:00:57]} 22. Ree1 {[%clk 0:00:57]}  b4 {[%clk 0:00:55]} 23. Ne2 {[%clk 0:00:50]}  Nd3 {[%clk 0:00:53]} 24. Rf1 {[%clk 0:00:50]}  Nxb2 {[%clk 0:00:50]} 25. Rb1 {[%clk 0:00:50]}  Rd2 {[%clk 0:00:49]} 26. Nc1 {[%clk 0:00:50]}  Rfd8 {[%clk 0:00:42]} 27. Nb3 {[%clk 0:00:50]}  Re2 {[%clk 0:00:41]} 28. f4 {[%clk 0:00:47]}  g6 {[%clk 0:00:36]} 29. Rf2 {[%clk 0:00:42]}  Rxf2 {[%clk 0:00:35]} 30. Kxf2 {[%clk 0:00:43]}  Nd1+ {[%clk 0:00:35]} 31. Kf3 {[%clk 0:00:41]}  Nc3 {[%clk 0:00:31]} 32. Rb2 {[%clk 0:00:41]}  Rd3+ {[%clk 0:00:31]} 33. Kg4 {[%clk 0:00:39]}  h5+ {[%clk 0:00:28]} 34. Kh4 {[%clk 0:00:39]}  Kg7 {[%clk 0:00:19]} 35. Nc5 {[%clk 0:00:39]}  Rd4 {[%clk 0:00:20]} 36. Nxa6 {[%clk 0:00:38]}  Rxf4+ {[%clk 0:00:18]} 37. Kg3 {[%clk 0:00:38]}  Rg4+ {[%clk 0:00:18]} 38. Kf3 {[%clk 0:00:38]}  Nd5 {[%clk 0:00:19]} 39. g3 {[%clk 0:00:35]}  Rc4 {[%clk 0:00:18]} 40. Re2 {[%clk 0:00:31]}  g5 {[%clk 0:00:18]} 41. Nb8 {[%clk 0:00:30]}  Kg6 {[%clk 0:00:17]} 42. Nd7 {[%clk 0:00:29]}  Rc3+ {[%clk 0:00:17]} 43. Kf2 {[%clk 0:00:29]}  Kf5 {[%clk 0:00:17]} 44. Rb2 {[%clk 0:00:28]}  Rc7 {[%clk 0:00:15]} 45. Nf6 {[%clk 0:00:28]}  Nxf6 {[%clk 0:00:14]} 46. exf6 {[%clk 0:00:28]}  Rc4 {[%clk 0:00:15]} 47. Rd2 {[%clk 0:00:24]}  Kxf6 {[%clk 0:00:15]} 48. Ke3 {[%clk 0:00:23]}  Rc3+ {[%clk 0:00:15]} 49. Kd4 {[%clk 0:00:23]}  Rc8 {[%clk 0:00:12]} 50. Rb2 {[%clk 0:00:23]}  Rb8 {[%clk 0:00:12]} 51. Kc4 {[%clk 0:00:23]}  e5 {[%clk 0:00:12]} 52. Rf2+ {[%clk 0:00:18]}  Ke6 {[%clk 0:00:12]} 53. Rb2 {[%clk 0:00:17]}  f5 {[%clk 0:00:12]} 54. a3 {[%clk 0:00:16]}  Rc8+ {[%clk 0:00:10]} 55. Kd3 {[%clk 0:00:15]}  bxa3 {[%clk 0:00:09]} 56. Rb6+ {[%clk 0:00:15]}  Kd5 {[%clk 0:00:10]} 57. Rb5+ {[%clk 0:00:15]}  Rc5 {[%clk 0:00:10]} 58. Rb6 {[%clk 0:00:15]}  Ra5 {[%clk 0:00:10]} 59. Rb1 {[%clk 0:00:14]}  a2 {[%clk 0:00:10]} 60. Ra1 {[%clk 0:00:14]}  e4+ {[%clk 0:00:11]} 61. Ke3 {[%clk 0:00:14]}  Ke5 {[%clk 0:00:11]} 62. Kd2 {[%clk 0:00:14]}  Ra3 {[%clk 0:00:12]} 63. Kc2 {[%clk 0:00:15]}  Ra8 {[%clk 0:00:12]} 64. Kb2 {[%clk 0:00:15]}  e3 {[%clk 0:00:13]} 65. h3 {[%clk 0:00:14]}  f4 {[%clk 0:00:13]} 66. g4 {[%clk 0:00:13]}  hxg4 {[%clk 0:00:13]} 67. hxg4 {[%clk 0:00:14]}  Ke4 {[%clk 0:00:13]} 68. Rc1 {[%clk 0:00:14]}  a1=Q+ {[%clk 0:00:13]} 69. Rxa1 {[%clk 0:00:14]}  Rxa1 {[%clk 0:00:14]} 70. Kxa1 {[%clk 0:00:15]}  e2 {[%clk 0:00:14]} 0-1


[Site "https://www.chess.com"]

[Event "Titled Tuesday Blitz April 26 Late 2022"]
[White "Sevian, Samuel"]
[Black "Talibov, Shiroghlan"]
[WhiteFideId "2040506"]
[BlackFideId "13429078"]
[WhiteElo "2698"]
[BlackElo "2042"]
[Result "1-0"]
[Round "02"]
[TimeControl "180+1"]
[Date "2022.04.26"]
[WhiteClock "0:02:19"]
[BlackClock "0:00:21"]

1. b3 {[%clk 0:03:00]}  g6 {[%clk 0:02:56]} 2. Bb2 {[%clk 0:03:01]}  Nf6 {[%clk 0:02:56]} 3. e4 {[%clk 0:03:01]}  d6 {[%clk 0:02:55]} 4. Nf3 {[%clk 0:03:00]}  Bg7 {[%clk 0:02:55]} 5. Qc1 {[%clk 0:02:52]}  O-O {[%clk 0:02:53]} 6. Nc3 {[%clk 0:02:53]}  e5 {[%clk 0:02:50]} 7. Be2 {[%clk 0:02:52]}  c5 {[%clk 0:02:49]} 8. O-O {[%clk 0:02:52]}  Nc6 {[%clk 0:02:49]} 9. h3 {[%clk 0:02:52]}  Nh5 {[%clk 0:02:48]} 10. Re1 {[%clk 0:02:53]}  Nf4 {[%clk 0:02:46]} 11. Nd5 {[%clk 0:02:52]}  Nxd5 {[%clk 0:02:35]} 12. exd5 {[%clk 0:02:52]}  Ne7 {[%clk 0:02:35]} 13. c4 {[%clk 0:02:51]}  Nf5 {[%clk 0:02:23]} 14. d3 {[%clk 0:02:51]}  Nh4 {[%clk 0:02:21]} 15. a3 {[%clk 0:02:49]}  Nxf3+ {[%clk 0:02:17]} 16. Bxf3 {[%clk 0:02:48]}  Qf6 {[%clk 0:02:14]} 17. Qd1 {[%clk 0:02:46]}  b6 {[%clk 0:02:11]} 18. b4 {[%clk 0:02:42]}  Qh4 {[%clk 0:02:10]} 19. Bc3 {[%clk 0:02:38]}  f5 {[%clk 0:02:07]} 20. Qa4 {[%clk 0:02:38]}  Qe7 {[%clk 0:01:54]} 21. bxc5 {[%clk 0:02:37]}  bxc5 {[%clk 0:01:53]} 22. Rab1 {[%clk 0:02:37]}  g5 {[%clk 0:01:48]} 23. Qc6 {[%clk 0:02:32]}  Bd7 {[%clk 0:01:46]} 24. Rb7 {[%clk 0:02:32]}  Rfd8 {[%clk 0:01:16]} 25. Ba5 {[%clk 0:02:24]}  Bf8 {[%clk 0:00:40]} 26. Bxd8 {[%clk 0:02:22]}  Rxd8 {[%clk 0:00:41]} 27. Qa6 {[%clk 0:02:21]}  h5 {[%clk 0:00:22]} 28. Bxh5 {[%clk 0:02:19]}  Qh7 {[%clk 0:00:21]} 29. Qxa7 {[%clk 0:02:19]} 1-0


[Site "https://www.chess.com"]

[Event "Titled Tuesday Blitz April 26 Late 2022"]
[White "Sliwicka, Alicja"]
[Black "Pichot, Alan"]
[WhiteFideId "1150677"]
[BlackFideId "110973"]
[WhiteElo "2120"]
[BlackElo "2579"]
[Result "0-1"]
[Round "02"]
[TimeControl "180+1"]
[Date "2022.04.26"]
[WhiteClock "0:00:24"]
[BlackClock "0:01:16"]

1. e4 {[%clk 0:03:00]}  c5 {[%clk 0:02:59]} 2. Nf3 {[%clk 0:03:00]}  d6 {[%clk 0:03:00]} 3. d4 {[%clk 0:03:01]}  cxd4 {[%clk 0:03:01]} 4. Nxd4 {[%clk 0:03:02]}  Nf6 {[%clk 0:03:02]} 5. Nc3 {[%clk 0:03:02]}  a6 {[%clk 0:03:02]} 6. Nb3 {[%clk 0:03:02]}  g6 {[%clk 0:02:59]} 7. Be2 {[%clk 0:03:00]}  Bg7 {[%clk 0:02:59]} 8. g4 {[%clk 0:03:00]}  h5 {[%clk 0:02:49]} 9. g5 {[%clk 0:02:44]}  Nfd7 {[%clk 0:02:50]} 10. Be3 {[%clk 0:02:41]}  Nc6 {[%clk 0:02:47]} 11. f4 {[%clk 0:02:40]}  b5 {[%clk 0:02:45]} 12. Qd2 {[%clk 0:02:28]}  Bb7 {[%clk 0:02:44]} 13. a4 {[%clk 0:02:26]}  b4 {[%clk 0:02:33]} 14. Nd5 {[%clk 0:02:25]}  a5 {[%clk 0:02:33]} 15. Bb5 {[%clk 0:02:14]}  e6 {[%clk 0:02:30]} 16. Nd4 {[%clk 0:01:50]}  Rc8 {[%clk 0:02:17]} 17. Nf6+ {[%clk 0:01:19]}  Nxf6 {[%clk 0:02:08]} 18. gxf6 {[%clk 0:01:16]}  Bxf6 {[%clk 0:02:05]} 19. O-O-O {[%clk 0:01:06]}  O-O {[%clk 0:01:59]} 20. f5 {[%clk 0:01:06]}  Nxd4 {[%clk 0:01:57]} 21. Bxd4 {[%clk 0:01:06]}  e5 {[%clk 0:01:58]} 22. Be3 {[%clk 0:01:05]}  Bxe4 {[%clk 0:01:58]} 23. Bd3 {[%clk 0:01:04]}  Bxh1 {[%clk 0:01:25]} 24. Rxh1 {[%clk 0:00:57]}  d5 {[%clk 0:01:25]} 25. fxg6 {[%clk 0:00:53]}  e4 {[%clk 0:01:25]} 26. Be2 {[%clk 0:00:39]}  b3 {[%clk 0:01:25]} 27. c3 {[%clk 0:00:37]}  d4 {[%clk 0:01:26]} 28. Bh6 {[%clk 0:00:24]}  dxc3 {[%clk 0:01:23]} 29. Qf4 {[%clk 0:00:24]}  Qd2+ {[%clk 0:01:20]} 30. Qxd2 {[%clk 0:00:23]}  cxd2+ {[%clk 0:01:21]} 31. Kxd2 {[%clk 0:00:24]}  Rfd8+ {[%clk 0:01:15]} 32. Ke3 {[%clk 0:00:24]}  fxg6 {[%clk 0:01:16]} 33. Rg1 {[%clk 0:00:24]}  Kh7 {[%clk 0:01:16]} 0-1


[Site "https://www.chess.com"]

[Event "Titled Tuesday Blitz April 26 Late 2022"]
[White "Stanisz, Patryk"]
[Black "Bordi, Kevin"]
[WhiteFideId "1123106"]
[BlackFideId "621862"]
[WhiteElo "1833"]
[BlackElo "2762"]
[Result "1-0"]
[Round "02"]
[TimeControl "180+1"]
[Date "2022.04.26"]
[WhiteClock "0:00:47"]
[BlackClock "0:01:30"]

1. d4 {[%clk 0:03:00]}  d5 {[%clk 0:02:59]} 2. c4 {[%clk 0:03:01]}  c6 {[%clk 0:03:00]} 3. Nf3 {[%clk 0:03:00]}  Nf6 {[%clk 0:03:00]} 4. Nc3 {[%clk 0:03:00]}  e6 {[%clk 0:03:00]} 5. e3 {[%clk 0:03:00]}  Nbd7 {[%clk 0:03:00]} 6. Qc2 {[%clk 0:03:00]}  Bd6 {[%clk 0:03:01]} 7. g4 {[%clk 0:02:59]}  Nxg4 {[%clk 0:03:00]} 8. Rg1 {[%clk 0:02:59]}  f5 {[%clk 0:03:01]} 9. h3 {[%clk 0:02:59]}  Ngf6 {[%clk 0:03:02]} 10. cxd5 {[%clk 0:02:58]}  cxd5 {[%clk 0:02:59]} 11. Rxg7 {[%clk 0:02:51]}  Ne4 {[%clk 0:02:59]} 12. Bd2 {[%clk 0:02:44]}  Qf6 {[%clk 0:02:58]} 13. Rg1 {[%clk 0:02:25]}  Nf8 {[%clk 0:02:56]} 14. Nb5 {[%clk 0:02:20]}  Bd7 {[%clk 0:02:49]} 15. Nxd6+ {[%clk 0:02:13]}  Nxd6 {[%clk 0:02:50]} 16. Ne5 {[%clk 0:01:58]}  Rc8 {[%clk 0:02:48]} 17. Qb3 {[%clk 0:01:57]}  Ng6 {[%clk 0:02:38]} 18. Nxd7 {[%clk 0:01:44]}  Kxd7 {[%clk 0:02:38]} 19. Bb4 {[%clk 0:01:45]}  Nc4 {[%clk 0:02:23]} 20. Qa4+ {[%clk 0:01:31]}  Rc6 {[%clk 0:02:03]} 21. Qxa7 {[%clk 0:01:26]}  Rhc8 {[%clk 0:02:03]} 22. b3 {[%clk 0:01:15]}  Nd6 {[%clk 0:01:53]} 23. Bxd6 {[%clk 0:01:12]}  Kxd6 {[%clk 0:01:44]} 24. Qxb7 {[%clk 0:00:58]}  R6c7 {[%clk 0:01:29]} 25. Qb4+ {[%clk 0:00:58]}  Kd7 {[%clk 0:01:29]} 26. Bb5+ {[%clk 0:00:57]}  Kd8 {[%clk 0:01:30]} 27. Qd6+ {[%clk 0:00:47]} 1-0


[Site "https://www.chess.com"]

[Event "Titled Tuesday Blitz April 26 Late 2022"]
[White "Stevens, Christian"]
[Black "Balint, Vilmos"]
[WhiteFideId "2604450"]
[BlackFideId "718050"]
[WhiteElo "2543"]
[BlackElo "2059"]
[Result "1/2-1/2"]
[Round "02"]
[TimeControl "180+1"]
[Date "2022.04.26"]
[WhiteClock "0:00:05"]
[BlackClock "0:01:21"]

1. Nf3 {[%clk 0:03:00]}  f5 {[%clk 0:02:51]} 2. d3 {[%clk 0:02:55]}  Nf6 {[%clk 0:02:51]} 3. Nbd2 {[%clk 0:02:52]}  d6 {[%clk 0:02:51]} 4. e4 {[%clk 0:02:52]}  e5 {[%clk 0:02:51]} 5. g3 {[%clk 0:02:52]}  g6 {[%clk 0:02:50]} 6. Bg2 {[%clk 0:02:52]}  Bg7 {[%clk 0:02:51]} 7. O-O {[%clk 0:02:53]}  O-O {[%clk 0:02:51]} 8. c3 {[%clk 0:02:53]}  f4 {[%clk 0:02:50]} 9. d4 {[%clk 0:02:52]}  fxg3 {[%clk 0:02:48]} 10. hxg3 {[%clk 0:02:49]}  Ng4 {[%clk 0:02:47]} 11. dxe5 {[%clk 0:02:48]}  dxe5 {[%clk 0:02:45]} 12. Nc4 {[%clk 0:02:43]}  Qxd1 {[%clk 0:02:44]} 13. Rxd1 {[%clk 0:02:42]}  Be6 {[%clk 0:02:41]} 14. Ne3 {[%clk 0:02:36]}  Nd7 {[%clk 0:02:39]} 15. Ng5 {[%clk 0:02:34]}  Nc5 {[%clk 0:02:25]} 16. Nxe6 {[%clk 0:02:31]}  Nxe3 {[%clk 0:02:23]} 17. Bxe3 {[%clk 0:02:24]}  Nxe6 {[%clk 0:02:23]} 18. Bh3 {[%clk 0:02:21]}  Rae8 {[%clk 0:02:21]} 19. Rd7 {[%clk 0:02:21]}  Rf7 {[%clk 0:02:22]} 20. Rad1 {[%clk 0:02:21]}  Nf8 {[%clk 0:02:15]} 21. Rxf7 {[%clk 0:02:19]}  Kxf7 {[%clk 0:02:16]} 22. Bf1 {[%clk 0:02:17]}  b6 {[%clk 0:02:10]} 23. Bc4+ {[%clk 0:02:16]}  Ke7 {[%clk 0:02:10]} 24. Kg2 {[%clk 0:02:09]}  Bf6 {[%clk 0:02:10]} 25. f4 {[%clk 0:02:07]}  Rd8 {[%clk 0:02:08]} 26. Rxd8 {[%clk 0:02:07]}  Kxd8 {[%clk 0:02:09]} 27. Kf3 {[%clk 0:02:07]}  Ke7 {[%clk 0:02:06]} 28. b4 {[%clk 0:02:01]}  exf4 {[%clk 0:02:00]} 29. gxf4 {[%clk 0:02:00]}  Bxc3 {[%clk 0:02:00]} 30. b5 {[%clk 0:02:00]}  Ne6 {[%clk 0:01:58]} 31. e5 {[%clk 0:01:56]}  Ng7 {[%clk 0:01:48]} 32. Ke4 {[%clk 0:01:50]}  Nf5 {[%clk 0:01:48]} 33. Bf2 {[%clk 0:01:46]}  Kd7 {[%clk 0:01:42]} 34. Bg8 {[%clk 0:01:44]}  h5 {[%clk 0:01:41]} 35. Bf7 {[%clk 0:01:40]}  Ne7 {[%clk 0:01:34]} 36. Bh4 {[%clk 0:01:37]}  Bb4 {[%clk 0:01:34]} 37. Bxe7 {[%clk 0:01:35]}  Bxe7 {[%clk 0:01:34]} 38. Bxg6 {[%clk 0:01:36]}  h4 {[%clk 0:01:35]} 39. f5 {[%clk 0:01:36]}  c6 {[%clk 0:01:35]} 40. f6 {[%clk 0:01:36]}  Bd8 {[%clk 0:01:28]} 41. bxc6+ {[%clk 0:01:00]}  Kxc6 {[%clk 0:01:24]} 42. Kf5 {[%clk 0:01:00]}  h3 {[%clk 0:01:24]} 43. Bh5 {[%clk 0:00:43]}  h2 {[%clk 0:01:20]} 44. Bf3+ {[%clk 0:00:43]}  Kd7 {[%clk 0:01:21]} 45. e6+ {[%clk 0:00:43]}  Kd6 {[%clk 0:01:21]} 46. e7 {[%clk 0:00:28]}  Bxe7 {[%clk 0:01:20]} 47. fxe7 {[%clk 0:00:28]}  Kxe7 {[%clk 0:01:20]} 48. Ke5 {[%clk 0:00:28]}  Kd7 {[%clk 0:01:19]} 49. Kd5 {[%clk 0:00:26]}  Kc7 {[%clk 0:01:19]} 50. Kc4 {[%clk 0:00:18]}  a6 {[%clk 0:01:18]} 51. Kd5 {[%clk 0:00:18]}  Kd7 {[%clk 0:01:16]} 52. Ke5 {[%clk 0:00:12]}  Kc7 {[%clk 0:01:17]} 53. Ke6 {[%clk 0:00:11]}  b5 {[%clk 0:01:17]} 54. Kd5 {[%clk 0:00:09]}  Kb6 {[%clk 0:01:18]} 55. Kd4 {[%clk 0:00:08]}  Ka5 {[%clk 0:01:19]} 56. Kc3 {[%clk 0:00:03]}  Ka4 {[%clk 0:01:19]} 57. Kb2 {[%clk 0:00:02]}  Kb4 {[%clk 0:01:20]} 58. Bh1 {[%clk 0:00:01]}  a5 {[%clk 0:01:20]} 59. Kc2 {[%clk 0:00:02]}  a4 {[%clk 0:01:21]} 60. Kb2 {[%clk 0:00:02]}  Kc4 {[%clk 0:01:21]} 61. Ka3 {[%clk 0:00:02]}  Kc3 {[%clk 0:01:20]} 62. Bc6 {[%clk 0:00:02]}  Kc4 {[%clk 0:01:19]} 63. Bh1 {[%clk 0:00:02]}  Kc5 {[%clk 0:01:19]} 64. Kb2 {[%clk 0:00:02]}  Kb4 {[%clk 0:01:19]} 65. Kc2 {[%clk 0:00:02]}  Ka3 {[%clk 0:01:20]} 66. Kb1 {[%clk 0:00:03]}  b4 {[%clk 0:01:20]} 67. Bc6 {[%clk 0:00:02]}  b3 {[%clk 0:01:20]} 68. axb3 {[%clk 0:00:02]}  h1=Q+ {[%clk 0:01:20]} 69. Bxh1 {[%clk 0:00:02]}  Kxb3 {[%clk 0:01:20]} 70. Ka1 {[%clk 0:00:03]}  Kb4 {[%clk 0:01:21]} 71. Kb1 {[%clk 0:00:03]}  a3 {[%clk 0:01:22]} 72. Ka2 {[%clk 0:00:03]}  Kc3 {[%clk 0:01:22]} 73. Ka1 {[%clk 0:00:04]}  a2 {[%clk 0:01:21]} 74. Kxa2 {[%clk 0:00:05]} 1/2-1/2


[Site "https://www.chess.com"]